fUST/lending_fUST_20250305
["ID","MTS","AMOUNT","RATE_DAILY","PERIOD"]
[355405548,1741110633567,-500.0,0.00032271,2]
[355405549,1741110633577,-3042.66564483,0.00032271,2]
[355405551,1741110633586,-500.0,0.00032271,2]
[355405553,1741110633596,-3042.66564483,0.00032271,2]
[355405554,1741110633605,-3042.66564483,0.00032271,2]
[355405556,1741110633618,-399.8066499,0.00032271,2]
[355405558,1741110633627,-3042.66564483,0.00032271,2]
[355405560,1741110633636,-3042.66564483,0.00032271,2]
[355405561,1741110633646,-500.0,0.00032271,2]
[355405562,1741110633655,-3042.66564483,0.00032271,2]
[355405564,1741110633665,-3042.66564483,0.00032271,2]
[355405566,1741110633675,-3042.66564483,0.00032271,2]
[355405568,1741110633684,-3042.66564483,0.00032271,2]
[355405570,1741110633695,-3042.66564483,0.00032271,2]
[355405572,1741110633705,-3042.66564483,0.00032271,2]
[355405574,1741110633719,-3042.66564483,0.00032271,2]
[355405577,1741110633729,-3042.66564483,0.00032271,2]
[355405579,1741110633739,-3042.66564483,0.00032271,2]
[355405581,1741110633751,-3042.66564483,0.00032271,2]
[355405582,1741110633760,-3042.66564483,0.00032271,2]
[355405583,1741110633770,-3042.66564483,0.00032271,2]
[355405584,1741110633779,-3042.66564483,0.00032271,2]
[355405585,1741110633790,-3042.66564483,0.00032271,2]
[355405586,1741110633800,-3042.66564483,0.00032271,2]
[355405587,1741110633810,-3042.66564483,0.00032271,2]
[355405588,1741110633819,-3042.66564483,0.00032271,2]
[355405589,1741110633829,-3042.66564483,0.00032271,2]
[355405590,1741110633838,-3042.66564483,0.00032271,2]
[355405591,1741110633849,-3042.66564483,0.00032271,2]
[355405592,1741110633860,-500.0,0.00032271,2]
[355405593,1741110633869,-11931.34179827,0.00032271,2]
[355405594,1741110633879,-11931.34179827,0.00032271,2]
[355405595,1741110633890,-500.0,0.00032271,2]
[355405596,1741110633900,-11931.34179827,0.00032271,2]
[355405597,1741110633910,-11931.34179827,0.00032271,2]
[355405598,1741110633920,-500.0,0.00032271,2]
[355405599,1741110633931,-11931.34179827,0.00032271,2]
[355405600,1741110633941,-11931.34179827,0.00032271,2]
[355405601,1741110633950,-500.0,0.00032271,2]
[355405602,1741110633960,-11931.34179827,0.00032271,2]
[355405603,1741110633971,-11931.34179827,0.00032271,2]
[355405604,1741110633982,-250.0,0.00032271,2]
[355405605,1741110633992,-11931.34179827,0.00032271,2]
[355405606,1741110634001,-11931.34179827,0.00032271,2]
[355405607,1741110634011,-500.0,0.00032271,2]
[355405608,1741110634021,-11931.34179827,0.00032271,2]
[355405609,1741110634030,-500.0,0.00032271,2]
[355405610,1741110634040,-11931.34179827,0.00032271,2]
[355405611,1741110634050,-500.0,0.00032271,2]
[355405612,1741110634060,-11931.34179827,0.00032271,2]
[355405613,1741110634070,-500.0,0.00032271,2]
[355405614,1741110634081,-11931.34179827,0.00032271,2]
[355405615,1741110634090,-500.0,0.00032271,2]
[355405616,1741110634099,-11931.34179827,0.00032271,2]
[355405617,1741110634110,-11931.34179827,0.00032271,2]
[355405618,1741110634120,-500.0,0.00032271,2]
[355405619,1741110634130,-11931.34179827,0.00032271,2]
[355405620,1741110634141,-500.0,0.00032271,2]
[355405621,1741110634151,-11931.34179827,0.00032271,2]
[355405622,1741110634162,-11931.34179827,0.00032271,2]
[355405623,1741110634173,-11931.34179827,0.00032271,2]
[355405624,1741110634189,-500.0,0.00032271,2]
[355405625,1741110634199,-11931.34179827,0.00032271,2]
[355405626,1741110634210,-500.0,0.00032271,2]
[355405627,1741110634226,-11931.34179827,0.00032271,2]
[355405628,1741110634237,-500.0,0.00032271,2]
[355405629,1741110634247,-11931.34179827,0.00032271,2]
[355405630,1741110634258,-500.0,0.00032271,2]
[355405631,1741110634268,-9406.2368683,0.00032271,2]
[355405632,1741110634285,-2525.10492997,0.00032271,2]
[355405633,1741110634296,-500.0,0.00032271,2]
[355405634,1741110634306,-11931.34179827,0.00032271,2]
[355405635,1741110634317,-500.0,0.00032271,2]
[355405636,1741110634327,-500.0,0.00032271,2]
[355405637,1741110634337,-500.0,0.00032271,2]
[355405638,1741110634347,-500.0,0.00032271,2]
[355405639,1741110634357,-3365.88796381,0.00032271,2]
[355405640,1741110634369,-8565.45383446,0.00032271,2]
[355405641,1741110634379,-500.0,0.00032271,2]
[355405642,1741110634389,-500.0,0.00032271,2]
[355405643,1741110634399,-500.0,0.00032271,2]
[355405644,1741110634410,-500.0,0.00032271,2]
[355405645,1741110634420,-500.0,0.00032271,2]
[355405646,1741110634430,-500.0,0.00032271,2]
[355405647,1741110634439,-500.0,0.00032271,2]
[355405648,1741110634450,-500.0,0.00032271,2]
[355405649,1741110634460,-500.0,0.00032271,2]
[355405650,1741110634471,-500.0,0.00032271,2]
[355405651,1741110634623,-500.0,0.00032271,2]
[355405652,1741110634634,-500.0,0.00032271,2]
[355405653,1741110634643,-500.0,0.00032271,2]
[355405654,1741110634652,-500.0,0.00032271,2]
[355405655,1741110634662,-500.0,0.00032271,2]
[355405656,1741110634671,-500.0,0.00032271,2]
[355405657,1741110634680,-500.0,0.00032271,2]
[355405658,1741110634689,-500.0,0.00032271,2]
[355405659,1741110634700,-500.0,0.00032271,2]
[355405660,1741110634712,-500.0,0.00032271,2]
[355405661,1741110634723,-500.0,0.00032271,2]
[355405662,1741110634733,-500.0,0.00032271,2]
[355405663,1741110634743,-500.0,0.00032271,2]
[355405664,1741110634753,-17234.16037522,0.00032271,2]
[355405665,1741110634762,-500.0,0.00032271,2]
[355405666,1741110634772,-500.0,0.00032271,2]
[355405667,1741110634783,-500.0,0.00032271,2]
[355405668,1741110634794,-500.0,0.00032271,2]
[355405669,1741110634803,-335.96973485,0.00032271,2]
[355405670,1741110634813,-500.0,0.00032271,2]
[355405671,1741110634823,-500.0,0.00032271,2]
[355405672,1741110634832,-500.0,0.00032271,2]
[355405673,1741110634842,-500.0,0.00032271,2]
[355405674,1741110634852,-500.0,0.00032271,2]
[355405675,1741110634861,-500.0,0.00032271,2]
[355405676,1741110634871,-500.0,0.00032271,2]
[355405677,1741110634880,-500.0,0.00032271,2]
[355405678,1741110634890,-500.0,0.00032271,2]
[355405679,1741110634900,-500.0,0.00032271,2]
[355405680,1741110634910,-500.0,0.00032271,2]
[355405681,1741110634919,-500.0,0.00032271,2]
[355405682,1741110634929,-271.42834974,0.00032273,5]
[355405683,1741110634939,-500.0,0.00032273,5]
[355405684,1741110634949,-503.32944057,0.00032273,5]
[355405685,1741110634958,-266.93007603,0.00032273,5]
[355405686,1741110634968,-25041.9546998,0.0003228,2]
[355405687,1741110634983,-9347.99999996,0.0003228,2]
[355405688,1741110634994,-4478.1123249,0.0003228,2]
[355405731,1741110638417,-42304.93693207,0.0003228,2]
[355405732,1741110638429,-428.60997044,0.0003228,2]
[355405756,1741110640578,-400.83803062,0.0003228,2]
[355405757,1741110640590,-4120.928039,0.0003228,2]
[355405758,1741110640601,-595.65711148,0.0003228,2]
[355405759,1741110640638,-85507.22289694,0.0003228,2]
[355405760,1741110640697,-14802.67989287,0.0003228,2]
[355405763,1741110640711,-1529.999999,0.0003228,2]
[355405790,1741110643488,-2497.7109845,0.0003228,2]
[355405791,1741110643544,-30943.34911842,0.0003228,2]
[355405792,1741110643555,-169.43,0.000323,7]
[355405793,1741110643564,-150.0,0.00032569,2]
[355405794,1741110643573,-154.4,0.000327,31]
[355405795,1741110643583,-154.4,0.000327,31]
[355405796,1741110643592,-154.4,0.000327,31]
[355405797,1741110643601,-154.4,0.000327,31]
[355405799,1741110643609,-461.28127726,0.000329,6]
[355405801,1741110643619,-5000.0,0.00033344,7]
[355405802,1741110643628,-266.35,0.000334,30]
[355405804,1741110643637,-637.35,0.000334,30]
[355405806,1741110643647,-1232.35,0.000334,30]
[355405808,1741110643657,-150.0,0.00033939,2]
[355405810,1741110643666,-245.0,0.00035262,2]
[355405812,1741110643675,-572.02,0.000353,30]
[355405814,1741110643684,-13837.01,0.000353,30]
[355405816,1741110643693,-150.0,0.00035309,2]
[355405817,1741110643708,-680.47306692,0.00035655,2]
[355405818,1741110643717,-500.0,0.0003589,2]
[355405819,1741110643727,-2542.74415727,0.000362,98]
[355405820,1741110643737,-150.0,0.00036679,2]
[355405821,1741110643747,-154.4,0.000367,31]
[355405822,1741110643756,-154.4,0.000367,31]
[355405823,1741110643765,-154.4,0.000367,31]
[355405824,1741110643774,-154.4,0.000367,31]
[355405825,1741110643784,-154.4,0.000367,31]
[355405826,1741110643794,-154.4,0.000367,31]
[355405827,1741110643803,-154.4,0.000367,31]
[355405828,1741110643812,-154.4,0.000367,31]
[355405829,1741110643821,-1685.14410247,0.00038,120]
[355405830,1741110643831,-1010.05588563,0.00038,15]
[355405831,1741110643840,-150.0,0.00038049,2]
[355405832,1741110643849,-5000.0,0.00038344,7]
[355405833,1741110643859,-1244.17,0.00038356,120]
[355405834,1741110643868,-242.457,0.00038466,51]
[355405835,1741110643877,-2304.36986457,0.00038894,3]
[355405836,1741110643886,-1244.17,0.00038904,120]
[355405837,1741110643895,-1232.35,0.00039,30]
[355405838,1741110643905,-680.47306692,0.00039137,2]
[355405839,1741110643914,-156.508724,0.00039373,2]
[355405840,1741110643924,-179.50275371,0.00039419,2]
[355405841,1741110643933,-1244.17,0.00039452,120]
[355405842,1741110643942,-169.43,0.000395,7]
[355405843,1741110643951,-637.35,0.000395,30]
[355405844,1741110643964,-266.35,0.0004,30]
[355405845,1741110643975,-1244.17,0.0004,120]
[355405846,1741110644004,-7840.94245932,0.0004,2]
[355405847,1741110644013,-1244.17,0.00040547,120]
[355405848,1741110644023,-154.4,0.000406,31]
[355405849,1741110644033,-154.4,0.000406,31]
[355405850,1741110644042,-154.4,0.000406,31]
[355405851,1741110644051,-154.4,0.000406,31]
[355405852,1741110644061,-154.4,0.000406,31]
[355405853,1741110644070,-154.4,0.000406,31]
[355405854,1741110644079,-154.4,0.000406,31]
[355405855,1741110644088,-154.4,0.000406,31]
[355405856,1741110644098,-156.508724,0.00040798,4]
[355405857,1741110644107,-3000.0,0.00040995,2]
[355405858,1741110644116,-500.0,0.00041073,5]
[355405859,1741110644128,-500.0,0.00041073,5]
[355405860,1741110644137,-500.0,0.00041073,5]
[355405861,1741110644146,-504.24527944,0.00041095,30]
[355405862,1741110644156,-500.0,0.00041095,120]
[355405863,1741110644165,-500.0,0.00041095,120]
[355405864,1741110644175,-150.0,0.00041095,2]
[355405865,1741110644184,-500.0,0.00041095,120]
[355405866,1741110644193,-500.0,0.00041095,120]
[355405867,1741110644202,-500.0,0.00041095,120]
[355405868,1741110644211,-500.0,0.00041095,30]
[355405869,1741110644220,-500.0,0.00041095,120]
[355405870,1741110644230,-500.0,0.00041095,120]
[355405871,1741110644239,-452.46572972,0.00041095,120]
[355405872,1741110644249,-500.0,0.00041095,120]
[355405874,1741110644258,-500.0,0.00041095,120]
[355405875,1741110644267,-500.0,0.00041095,120]
[355405877,1741110644276,-500.0,0.00041095,120]
[355405878,1741110644286,-500.0,0.00041095,120]
[355405880,1741110644295,-500.0,0.00041095,120]
[355405881,1741110644304,-500.0,0.00041095,120]
[355405882,1741110644313,-500.0,0.00041095,120]
[355405884,1741110644323,-506.39549877,0.00041095,120]
[355405885,1741110644332,-500.0,0.00041095,120]
[355405886,1741110644341,-500.0,0.00041095,120]
[355405887,1741110644351,-500.0,0.00041095,120]
[355405888,1741110644360,-500.0,0.00041095,120]
[355405889,1741110644369,-500.0,0.00041095,120]
[355405890,1741110644378,-643.21,0.00041095,120]
[355405891,1741110644387,-500.0,0.00041095,120]
[355405892,1741110644397,-493.29325972,0.00041095,120]
[355405893,1741110644406,-500.0,0.00041095,120]
[355405894,1741110644415,-565.78683964,0.00041095,120]
[355405895,1741110644424,-500.0,0.00041095,120]
[355405896,1741110644433,-500.0,0.00041095,120]
[355405897,1741110644443,-500.0,0.00041095,120]
[355405898,1741110644452,-500.0,0.00041095,120]
[355405899,1741110644461,-500.0,0.00041095,120]
[355405900,1741110644470,-500.0,0.00041095,120]
[355405901,1741110644481,-187.26266133,0.00041095,120]
[355405902,1741110644490,-500.0,0.00041095,120]
[355405903,1741110644500,-500.0,0.00041095,120]
[355405904,1741110644509,-500.0,0.00041095,120]
[355405905,1741110644519,-586.41,0.00041095,120]
[355405906,1741110644528,-1244.17,0.00041095,120]
[355405907,1741110644537,-500.0,0.00041211,2]
[355405908,1741110644546,-2304.36986457,0.00041359,3]
[355405909,1741110644556,-500.0,0.00041369,120]
[355405910,1741110644565,-500.0,0.00041369,120]
[355405911,1741110644574,-297.98,0.00041369,120]
[355405912,1741110644584,-500.0,0.00041369,120]
[355405913,1741110644593,-499.97,0.00041369,120]
[355405914,1741110644603,-500.0,0.00041369,120]
[355405915,1741110644612,-500.0,0.00041369,120]
[355405916,1741110644621,-643.21,0.00041369,120]
[355405917,1741110644630,-500.0,0.00041369,120]
[355405918,1741110644640,-500.0,0.00041369,120]
[355405919,1741110644649,-500.0,0.00041369,120]
[355405920,1741110644659,-500.0,0.00041369,120]
[355405921,1741110644668,-500.0,0.00041369,120]
[355405922,1741110644677,-500.0,0.00041369,120]
[355405923,1741110644686,-8570.74055409,0.00041517,28]
[355405924,1741110644695,-2542.74415725,0.0004153,120]
[355405925,1741110644705,-517.85020033,0.00041643,120]
[355405926,1741110644717,-500.0,0.00041643,120]
[355405927,1741110644726,-472.09,0.00041643,120]
[355405928,1741110644738,-500.0,0.00041643,120]
[355405929,1741110644747,-500.0,0.00041643,120]
[355405930,1741110644758,-643.21,0.00041643,120]
[355405931,1741110644767,-500.0,0.00041643,120]
[355405932,1741110644776,-500.0,0.00041643,120]
[355405933,1741110644786,-500.0,0.00041643,120]
[355405934,1741110644795,-500.0,0.00041643,120]
[355405935,1741110644804,-500.0,0.00041643,120]
[355405936,1741110644813,-1244.17,0.00041643,120]
[355405937,1741110644822,-397.0,0.00041655,2]
[355405938,1741110644831,-397.0,0.00041655,2]
[355405939,1741110644840,-166.55621767,0.00041807,120]
[355405940,1741110644849,-166.55621767,0.00041807,120]
[355405941,1741110644859,-166.55621767,0.00041807,120]
[355405942,1741110644868,-166.55621767,0.00041807,120]
[355405943,1741110644878,-166.55621767,0.00041807,120]
[355405944,1741110644887,-166.55621767,0.00041807,120]
[355405945,1741110644897,-166.55,0.00041807,120]
[355405946,1741110644906,-151.13434567,0.00041807,120]
[355405947,1741110644915,-151.13434567,0.00041807,120]
[355405948,1741110644924,-151.13434567,0.00041807,120]
[355405949,1741110644933,-151.13434567,0.00041807,120]
[355405950,1741110644942,-151.13434567,0.00041807,120]
[355405951,1741110644951,-151.13434567,0.00041807,120]
[355405952,1741110644960,-151.13434567,0.00041807,120]
[355405953,1741110644970,-151.13434567,0.00041807,120]
[355405954,1741110644981,-2304.36986457,0.00041897,3]
[355405955,1741110644990,-5000.0,0.00041907,90]
[355405956,1741110644999,-5000.0,0.00041907,90]
[355405957,1741110645009,-5000.0,0.00041907,90]
[355405958,1741110645019,-5000.0,0.00041907,90]
[355405959,1741110645028,-5000.0,0.00041907,90]
[355405960,1741110645037,-5000.0,0.00041907,90]
[355405961,1741110645047,-2830.192513,0.00041907,90]
[355405962,1741110645057,-500.0,0.00041917,120]
[355405963,1741110645068,-500.0,0.00041917,120]
[355405964,1741110645077,-500.0,0.00041917,120]
[355405965,1741110645087,-643.21,0.00041917,120]
[355405966,1741110645096,-500.0,0.00041917,120]
[355405967,1741110645105,-500.0,0.00041917,120]
[355405968,1741110645115,-500.0,0.00041917,120]
[355405969,1741110645124,-500.0,0.00041917,120]
[355405970,1741110645134,-500.0,0.00041917,120]
[355405971,1741110645143,-572.02,0.00042,30]
[355405972,1741110645153,-13837.01,0.00042,30]
[355405973,1741110645162,-1232.35,0.00042,30]
[355405974,1741110645171,-800.1815647,0.00042152,4]
[355405975,1741110645181,-354.16,0.00042191,120]
[355405976,1741110645190,-500.0,0.00042191,120]
[355405977,1741110645199,-500.0,0.00042191,120]
[355405978,1741110645209,-643.21,0.00042191,120]
[355405979,1741110645219,-500.0,0.00042191,120]
[355405980,1741110645228,-500.0,0.00042191,120]
[355405981,1741110645238,-500.0,0.00042191,120]
[355405982,1741110645247,-500.0,0.00042191,120]
[355405983,1741110645256,-584.071771,0.00042191,120]
[355405984,1741110645266,-584.071771,0.00042191,120]
[355405985,1741110645275,-151.0,0.00042191,120]
[355405986,1741110645285,-1244.17,0.00042191,120]
[355405987,1741110645294,-151.0,0.00042191,120]
[355405988,1741110645303,-151.13434567,0.00042196,120]
[355405989,1741110645312,-169.43,0.000422,30]
[355405990,1741110645321,-637.35,0.000422,30]
[355405991,1741110645330,-500.0,0.00042465,120]
[355405992,1741110645340,-500.0,0.00042465,120]
[355405993,1741110645349,-643.21,0.00042465,120]
[355405994,1741110645358,-500.0,0.00042465,120]
[355405995,1741110645367,-500.0,0.00042465,120]
[355405996,1741110645377,-500.0,0.00042465,120]
[355405997,1741110645386,-500.0,0.00042465,120]
[355405998,1741110645395,-177.918737,0.00042465,120]
[355405999,1741110645405,-151.0,0.00042465,120]
[355406000,1741110645414,-476.116251,0.00042465,120]
[355406001,1741110645423,-476.116251,0.00042465,120]
[355406002,1741110645433,-266.35,0.000425,30]
[355406003,1741110645443,-160.0,0.00042569,30]
[355406004,1741110645452,-680.47306692,0.00042618,2]
[355406005,1741110645462,-151.13434567,0.00042717,120]
[355406006,1741110645471,-500.0,0.00042739,120]
[355406007,1741110645482,-500.0,0.00042739,120]
[355406008,1741110645491,-643.21,0.00042739,120]
[355406009,1741110645500,-500.0,0.00042739,120]
[355406010,1741110645509,-500.0,0.00042739,120]
[355406011,1741110645518,-168.03155171,0.00042739,120]
[355406012,1741110645527,-500.0,0.00042739,120]
[355406013,1741110645537,-1244.17,0.00042739,120]
[355406014,1741110645546,-151.0,0.000428,13]
[355406015,1741110645555,-644.47867543,0.00043012,2]
[355406016,1741110645564,-151.2094033,0.00043012,2]
[355406017,1741110645573,-500.0,0.00043013,120]
[355406018,1741110645582,-500.0,0.00043013,120]
[355406019,1741110645591,-643.21,0.00043013,120]
[355406020,1741110645600,-500.0,0.00043013,120]
[355406021,1741110645610,-500.0,0.00043013,120]
[355406022,1741110645619,-500.0,0.00043013,120]
[355406023,1741110645628,-151.0,0.00043013,120]
[355406024,1741110645636,-476.116251,0.00043013,120]
[355406025,1741110645646,-476.116251,0.00043013,120]
[355406026,1741110645654,-584.071771,0.00043013,120]
[355406027,1741110645788,-584.071771,0.00043013,120]
[355406028,1741110645797,-151.0,0.00043013,120]
[355406029,1741110645807,-151.0,0.00043013,120]
[355406030,1741110645816,-151.0,0.00043013,120]
[355406031,1741110645826,-500.0,0.00043013,30]
[355406032,1741110645835,-1136.64054549,0.00043021,33]
[355406033,1741110645844,-489.0,0.000431,23]
[355406034,1741110645853,-1136.64054549,0.00043121,87]
[355406035,1741110645862,-600.0,0.000432,2]
[355406036,1741110645871,-1136.64054549,0.00043221,46]
[355406038,1741110645880,-151.13434567,0.00043238,120]
[355406039,1741110645890,-150.0,0.00043287,2]
[355406041,1741110645899,-151.0,0.00043287,120]
[355406042,1741110645908,-151.0,0.00043287,30]
[355406043,1741110645917,-500.0,0.00043287,120]
[355406044,1741110645927,-500.0,0.00043287,120]
[355406045,1741110645936,-151.0,0.00043287,120]
[355406046,1741110645945,-643.21,0.00043287,120]
[355406047,1741110645955,-150.42,0.00043287,30]
[355406048,1741110645964,-500.0,0.00043287,120]
[355406049,1741110645973,-500.0,0.00043287,120]
[355406050,1741110645984,-500.0,0.00043287,120]
[355406051,1741110645993,-1244.17,0.00043287,120]
[355406053,1741110646003,-500.0,0.00043287,30]
[355406054,1741110646012,-500.0,0.00043287,30]
[355406055,1741110646021,-150.42,0.00043287,2]
[355406056,1741110646030,-202.17538387,0.00043287,30]
[355406057,1741110646040,-500.0,0.00043287,30]
[355406058,1741110646050,-501.0,0.00043287,30]
[355406059,1741110646060,-150.42,0.00043314,30]
[355406060,1741110646069,-500.0,0.00043314,30]
[355406061,1741110646079,-539.511793,0.00043314,30]
[355406062,1741110646088,-500.0,0.00043314,30]
[355406063,1741110646099,-501.0,0.00043314,30]
[355406064,1741110646108,-1136.64054549,0.00043321,56]
[355406065,1741110646118,-150.42,0.00043342,30]
[355406066,1741110646127,-500.0,0.00043342,30]
[355406067,1741110646136,-500.0,0.00043342,30]
[355406068,1741110646146,-501.0,0.00043342,30]
[355406070,1741110646155,-5000.0,0.00043344,7]
[355406071,1741110646165,-204.03251415,0.00043369,30]
[355406073,1741110646175,-500.0,0.00043369,30]
[355406075,1741110646184,-500.0,0.00043369,30]
[355406076,1741110646195,-501.0,0.00043369,30]
[355406077,1741110646205,-578.6732594,0.00043397,30]
[355406078,1741110646215,-500.0,0.00043397,30]
[355406080,1741110646224,-501.0,0.00043397,30]
[355406082,1741110646236,-1136.64054549,0.00043421,39]
[355406084,1741110646245,-964.60055439,0.00043424,30]
[355406085,1741110646255,-501.0,0.00043424,30]
[355406086,1741110646264,-501.0,0.00043451,30]
[355406087,1741110646274,-501.0,0.00043479,30]
[355406088,1741110646284,-572.02,0.000435,30]
[355406089,1741110646294,-13837.01,0.000435,30]
[355406090,1741110646303,-1232.35,0.000435,30]
[355406091,1741110646313,-584.071771,0.000435,120]
[355406092,1741110646323,-584.071771,0.000435,120]
[355406093,1741110646333,-151.0,0.000435,120]
[355406095,1741110646343,-151.0,0.000435,120]
[355406097,1741110646353,-501.0,0.00043506,30]
[355406098,1741110646363,-1136.64054549,0.00043521,59]
[355406099,1741110646372,-501.0,0.00043534,30]
[355406100,1741110646382,-501.0,0.00043561,30]
[355406102,1741110646391,-150.0,0.00043561,2]
[355406104,1741110646400,-500.0,0.00043561,120]
[355406106,1741110646410,-500.0,0.00043561,120]
[355406107,1741110646418,-643.21,0.00043561,120]
[355406109,1741110646428,-500.0,0.00043561,120]
[355406111,1741110646437,-448.17206719,0.00043561,120]
[355406113,1741110646447,-500.0,0.00043561,120]
[355406115,1741110646456,-151.0,0.00043561,120]
[355406117,1741110646465,-476.116251,0.00043561,120]
[355406118,1741110646475,-476.116251,0.00043561,120]
[355406119,1741110646486,-500.0,0.00043584,30]
[355406120,1741110646496,-501.0,0.00043588,30]
[355406121,1741110646505,-169.43,0.000436,30]
[355406122,1741110646515,-637.35,0.000436,30]
[355406123,1741110646524,-163.21583966,0.000436,20]
[355406124,1741110646534,-501.0,0.00043616,30]
[355406125,1741110646543,-1136.64054549,0.00043621,45]
[355406126,1741110646553,-501.0,0.00043643,30]
[355406127,1741110646562,-501.0,0.00043671,30]
[355406128,1741110646571,-401.78496768,0.00043673,10]
[355406129,1741110646580,-501.0,0.00043698,30]
[355406130,1741110646590,-50000.0,0.000437,2]
[355406131,1741110646599,-266.35,0.000437,30]
[355406132,1741110646609,-192.192086,0.000437,120]
[355406133,1741110646618,-192.192086,0.000437,120]
[355406134,1741110646628,-151.0,0.000437,120]
[355406135,1741110646637,-151.0,0.000437,120]
[355406136,1741110646647,-1136.64054549,0.00043721,34]
[355406137,1741110646657,-501.0,0.00043725,30]
[355406138,1741110646666,-156.508724,0.0004373,2]
[355406139,1741110646677,-501.0,0.00043753,30]
[355406140,1741110646686,-151.13434567,0.00043759,120]
[355406141,1741110646696,-501.0,0.0004378,30]
[355406142,1741110646707,-520.95000008,0.00043808,30]
[355406143,1741110646717,-1136.64054549,0.00043821,46]
[355406144,1741110646727,-150.0,0.00043835,2]
[355406145,1741110646737,-151.0,0.00043835,120]
[355406146,1741110646748,-151.149031,0.00043835,120]
[355406147,1741110646758,-151.0,0.00043835,120]
[355406148,1741110646767,-441.735743,0.00043835,14]
[355406149,1741110646776,-441.735743,0.00043835,14]
[355406150,1741110646787,-151.0,0.00043835,120]
[355406151,1741110646797,-151.0,0.00043835,120]
[355406152,1741110646808,-207.51728,0.00043835,120]
[355406153,1741110646818,-207.51728,0.00043835,120]
[355406154,1741110646828,-151.0,0.00043835,30]
[355406155,1741110646837,-500.0,0.00043835,120]
[355406156,1741110646847,-500.0,0.00043835,120]
[355406157,1741110646856,-205.603625,0.00043835,120]
[355406158,1741110646865,-643.21,0.00043835,120]
[355406159,1741110646875,-500.0,0.00043835,120]
[355406160,1741110646884,-151.0,0.00043835,120]
[355406161,1741110646893,-500.0,0.00043835,120]
[355406162,1741110646903,-151.0,0.00043835,120]
[355406163,1741110646913,-535.46,0.00043835,120]
[355406164,1741110646923,-570.76,0.00043835,120]
[355406165,1741110646932,-500.0,0.00043835,120]
[355406166,1741110646942,-500.0,0.00043835,120]
[355406167,1741110646951,-584.071771,0.00043835,120]
[355406168,1741110646961,-500.0,0.00043835,120]
[355406169,1741110646970,-584.071771,0.00043835,120]
[355406170,1741110646979,-500.0,0.00043835,120]
[355406171,1741110646990,-500.0,0.00043835,120]
[355406172,1741110647000,-500.0,0.00043835,120]
[355406173,1741110647009,-500.0,0.00043835,120]
[355406174,1741110647019,-500.0,0.00043835,120]
[355406175,1741110647028,-500.0,0.00043835,120]
[355406176,1741110647037,-500.0,0.00043835,120]
[355406177,1741110647047,-500.0,0.00043835,120]
[355406178,1741110647056,-500.0,0.00043835,120]
[355406179,1741110647066,-500.0,0.00043835,120]
[355406180,1741110647075,-500.0,0.00043835,120]
[355406181,1741110647085,-500.0,0.00043835,120]
[355406182,1741110647094,-500.0,0.00043835,120]
[355406183,1741110647104,-500.0,0.00043835,120]
[355406184,1741110647113,-512.36350775,0.00043835,120]
[355406185,1741110647123,-500.0,0.00043835,120]
[355406186,1741110647133,-500.0,0.00043835,120]
[355406187,1741110647142,-500.0,0.00043835,120]